bitfinex/quotes_ETHUSD_20241116
["timestamp","ask_amount","ask_price","bid_price","bid_amount"]
[1731766965325,3.15856,3166.0,3165.3,3.15924]
[1731766965680,3.15835,3166.3,3165.4,3.19674845]
[1731766965881,3.15846,3166.1,3165.4,3.19674845]
[1731766966422,3.15809,3166.5,3165.5,3.15898]
[1731766966626,3.15771,3166.9,3165.5,3.15898]
[1731766966627,3.15836,3166.2,3165.5,3.15898]
[1731766966828,3.15836,3166.2,3165.6,0.03744138]
[1731766967120,3.15885,3165.7,3165.6,0.03744138]
[1731766967320,3.15835,3166.3,3165.6,0.03744138]
[1731766967484,3.15835,3166.3,3165.7,0.03720742]
[1731766967881,3.15835,3166.3,3165.7,3.2592263]
[1731766968121,3.1581,3166.5,3165.7,3.58514893]
[1731766968306,3.15804,3166.6,3165.7,3.58514893]
[1731766968521,3.78176484,3167.2,3165.7,0.03720742]
[1731766968522,0.01,3166.8,3165.7,0.03720742]
[1731766968699,3.15875,3165.8,3165.7,0.03720742]
[1731766968886,3.15896,3165.6,3164.9,3.15963]
[1731766969088,3.15896,3165.6,3165.0,3.03742972]
[1731766969338,3.15857,3166.0,3165.1,3.0]
[1731766969528,3.15886,3165.7,3165.2,0.0373537]
[1731766970323,3.15886,3165.7,3165.3,0.03713515]
[1731766970493,3.15886,3165.7,3165.1,0.06318005]
[1731766970686,3.15866,3165.9,3165.2,3.15934]
[1731766970889,3.15868,3165.9,3165.2,3.19642745]
[1731766971111,3.15847,3166.1,3165.3,0.06318005]
[1731766971321,3.0,3166.3,3165.4,3.15913]
[1731766971621,3.15811,3166.5,3165.6,3.1589]
[1731766971814,3.15811,3166.5,3165.8,3.15867]
[1731766972012,3.15817,3166.4,3165.8,3.15867]
[1731766972330,3.15817,3166.4,3165.9,0.0368833]
[1731766972541,3.15817,3166.4,3165.7,3.37905763]
[1731766972732,3.15826,3166.3,3165.8,0.03691502]
[1731766972930,3.15826,3166.3,3165.7,3.53790763]
[1731766973237,3.15826,3166.3,3165.8,0.03690423]
[1731766973760,3.15826,3166.3,3165.9,0.03686949]
[1731766974047,3.15826,3166.3,3165.7,3.53790763]
[1731766974249,3.15796,3166.6,3166.0,0.03683721]
[1731766974459,3.15823,3166.4,3165.8,0.35379076]
[1731766974606,3.15823,3166.4,3166.1,0.03682187]
[1731766974942,3.15823,3166.4,3166.2,0.03678405]
[1731766975148,3.15826,3166.3,3166.2,0.03678405]
[1731766975449,3.15876,3165.8,3165.1,3.1594]
[1731766975802,3.15862,3166.0,3165.2,3.19640095]
[1731766976244,3.15866,3165.9,3165.2,3.19640095]
[1731766976448,3.15866,3165.9,3165.2,3.83199605]
[1731766976834,3.15836,3166.2,3165.4,3.15914]
[1731766977039,3.15808,3166.5,3165.4,0.06317487]
[1731766977239,3.15808,3166.5,3165.5,0.03637132]
[1731766977420,3.15826,3166.3,3165.5,3.03637132]
[1731766977621,3.15826,3166.3,3165.6,3.15888]
[1731766977946,3.15808,3166.5,3165.8,3.15872]
[1731766978148,3.15817,3166.4,3165.9,0.03636033]
[1731766978443,3.15808,3166.5,3165.9,0.03636033]
[1731766978657,3.15821,3166.4,3165.9,0.03636033]
[1731766980011,3.15792,3166.7,3165.9,3.51448036]
[1731766980221,3.15806,3166.5,3165.9,0.35587036]
[1731766980419,3.15817,3166.4,3165.9,0.35587036]
[1731766980640,3.15792,3166.7,3165.9,0.35587036]
[1731766980909,3.1582,3166.4,3165.9,0.03636033]
[1731766981139,3.1582,3166.4,3165.7,3.15881]
[1731766981349,3.1582,3166.4,3165.8,0.03636506]
[1731766981534,3.1582,3166.4,3165.8,0.67176857]
[1731766981535,3.15834,3166.3,3165.8,0.67176857]
[1731766982047,3.15865,3165.9,3165.8,0.03636506]
[1731766982411,3.15887,3165.7,3164.9,3.15964]
[1731766982713,3.69658794,3166.5,3165.0,0.03659399]
[1731766982714,3.15895,3165.6,3165.0,0.03659399]
[1731766982905,3.15895,3165.6,3164.9,3.15964]
[1731766983119,3.15895,3165.6,3165.0,0.35255799]
[1731766983321,3.15945,3165.1,3165.0,0.03659399]
[1731766983521,3.15945,3165.1,3164.1,3.16042]
[1731766983767,3.15945,3165.1,3163.9,0.01]
[1731766983768,3.15967,3164.9,3164.2,3.19720252]
[1731766984097,3.03512247,3165.7,3164.5,3.16002]
[1731766984098,3.15926,3165.3,3164.5,3.16002]
[1731766984301,3.15926,3165.3,3164.5,3.15996]
[1731766984591,3.15908,3165.5,3164.7,3.15977]
[1731766984791,3.15963,3165.0,3164.8,0.03665861]
[1731766984999,3.15954,3165.1,3164.3,0.31972025]
[1731766985289,3.15985,3164.8,3164.4,0.33197203]
[1731766985491,3.15985,3164.8,3164.0,6.16054]
[1731766985695,3.15965,3164.9,3164.0,6.16054]
[1731766985863,3.15991,3164.7,3163.7,3.17084]
[1731766986067,3.15991,3164.7,3163.9,3.0]
[1731766986396,3.15991,3164.7,3163.7,3.17084]
[1731766986397,3.16016,3164.4,3163.8,3.0]
[1731766986696,3.16016,3164.4,3163.9,0.616084]
[1731766986899,3.1595,3165.1,3164.2,3.0]
[1731766987051,3.01,3166.1,3164.1,3.16043]
[1731766987052,3.15855,3166.0,3164.1,3.16043]
[1731766987395,3.15973,3164.9,3164.2,3.0]
[1731766987603,3.16032,3164.3,3163.9,0.616084]
[1731766987780,3.16033,3164.3,3163.9,0.616084]
[1731766987974,3.16033,3164.3,3163.5,3.161]
[1731766988177,3.16033,3164.3,3163.6,35.0]
[1731766988378,3.16033,3164.3,3163.6,38.16086]
[1731766988961,3.16033,3164.3,3163.7,3.0]
[1731766989165,3.16007,3164.5,3163.8,3.14099947]
[1731766989494,3.16007,3164.5,3163.6,3.16086]
[1731766989495,3.16023,3164.4,3163.5,3.16104]
[1731766989679,3.16036,3164.2,3163.5,3.16104]
[1731766990096,3.16048,3164.1,3163.1,3.16142]
[1731766990410,3.16048,3164.1,3162.9,0.01]
[1731766990411,3.16048,3164.1,3163.4,3.16112]
[1731766990597,3.16048,3164.1,3163.5,0.632229]
[1731766990770,3.16056,3164.0,3163.5,0.632229]
[1731766991108,3.16038,3164.2,3163.5,0.632229]
[1731766991306,3.16018,3164.4,3163.5,6.16099]
[1731766991514,3.16053,3164.1,3163.3,6.1612]
[1731766991727,3.16053,3164.1,3163.5,3.0]
[1731766991891,3.16027,3164.3,3163.5,6.16103]
[1731766992070,3.16027,3164.3,3163.6,0.932217]
[1731766992270,3.16027,3164.3,3163.7,0.06320896]
[1731766992516,3.16027,3164.3,3163.6,4.093167]
[1731766992517,3.16042,3164.2,3163.6,0.932217]
[1731766992710,3.16056,3164.0,3163.1,3.0]
[1731766993008,3.16035,3164.3,3163.4,3.0]
[1731766993198,3.16035,3164.3,3163.5,0.06321469]
[1731766993392,3.16035,3164.3,3163.5,3.22424469]
[1731766993565,3.16048,3164.1,3163.5,0.06321469]
[1731766993769,3.16048,3164.1,3163.6,0.32242747]
[1731766994011,3.16041,3164.2,3163.6,0.32242747]
[1731766994165,3.16042,3164.2,3163.6,0.32242747]
[1731766994369,3.16042,3164.2,3163.5,3.16104]
[1731766994370,3.16042,3164.2,3163.7,0.34834675]
[1731766994606,3.16047,3164.1,3163.7,0.34834675]
[1731766994807,3.16002,3164.6,3163.8,0.06320909]
[1731766995027,3.16004,3164.6,3163.8,3.16067]
[1731766995227,3.3,3165.0,3163.9,0.06320397]
[1731766995396,3.16016,3164.4,3163.8,3.16067]
[1731766995600,3.0,3165.2,3163.9,0.06320397]
[1731766995791,3.15886,3165.7,3163.8,3.16067]
[1731766995792,3.15986,3164.7,3164.0,3.16053]
[1731766995987,3.15997,3164.6,3163.8,3.16067]
[1731766996298,3.15997,3164.6,3163.4,0.55]
[1731766996299,3.15997,3164.6,3163.9,3.16056]
[1731766996517,3.1597,3164.9,3164.1,3.16037]
[1731766996690,3.1597,3164.9,3164.2,3.22345712]
[1731766996885,3.15975,3164.8,3164.2,0.09931295]
[1731766997112,3.6791737,3165.7,3164.2,0.09931295]
[1731766997113,3.15987,3164.7,3164.2,0.09931295]
[1731766997320,3.15987,3164.7,3164.2,0.03611583]
[1731766997527,3.15966,3164.9,3164.2,0.35126618]
[1731766997685,3.1595,3165.1,3164.3,3.25942708]
[1731766998202,3.15942,3165.2,3164.3,0.09924708]
[1731766998387,3.15942,3165.2,3164.6,3.15994]
[1731766998589,3.15942,3165.2,3164.7,0.03592187]
[1731766998812,3.15956,3165.0,3164.2,3.51160618]
[1731766999026,3.15956,3165.0,3164.1,0.3163]
[1731766999027,3.15941,3165.2,3164.8,0.03586197]
[1731766999242,3.15941,3165.2,3164.6,3.22314044]
[1731766999536,3.15908,3165.5,3164.6,0.06319044]
[1731766999734,3.15886,3165.7,3164.7,3.15985]
[1731767000041,3.15883,3165.8,3164.9,3.15957]
[1731767000331,3.15883,3165.8,3165.1,3.15945]
[1731767000501,3.15883,3165.8,3165.2,0.03573273]
[1731767000892,3.84289037,3166.4,3165.2,0.03573273]
[1731767000893,3.15886,3165.7,3165.2,0.09891101]
[1731767001200,3.6791737,3166.5,3165.2,0.03573273]
[1731767001201,3.15905,3165.6,3165.2,0.03573273]
[1731767001407,3.15905,3165.6,3164.9,3.15964]
[1731767001614,3.15913,3165.5,3165.3,0.03570042]
[1731767001820,3.15913,3165.5,3164.4,3.16005]
[1731767001821,3.15957,3165.0,3164.2,3.16029]
[1731767002135,3.15977,3164.8,3164.1,3.0]
[1731767002289,3.15957,3165.0,3164.3,3.0]
[1731767002514,3.15957,3165.0,3164.4,0.65579737]
[1731767002715,3.475043,3165.5,3164.4,0.65579737]
[1731767002933,3.15967,3164.9,3164.4,0.65579737]
[1731767003250,3.15988,3164.7,3164.4,0.65579737]
[1731767003448,3.15977,3164.8,3164.4,0.03614947]
[1731767003649,3.15995,3164.6,3164.4,0.03614947]
[1731767003949,3.15995,3164.6,3163.6,0.61634556]
[1731767003950,3.16022,3164.4,3163.6,3.16093]
[1731767004124,3.16022,3164.4,3163.7,0.03728208]
[1731767004326,3.16036,3164.2,3163.7,0.03728208]
[1731767004532,3.16036,3164.2,3163.4,3.16115]
[1731767004733,3.16036,3164.2,3163.5,0.316115]
[1731767004944,3.16036,3164.2,3163.5,3.19747111]
[1731767005259,3.16055,3164.0,3163.5,0.03644111]
[1731767005412,3.16015,3164.4,3163.5,0.03644111]
[1731767005612,3.16015,3164.4,3162.9,3.16163]
[1731767005613,3.1608,3163.8,3163.2,3.16135]
[1731767005806,3.1608,3163.8,3163.6,0.03659463]
[1731767006020,3.6791737,3164.5,3163.3,0.316135]
[1731767006296,3.16058,3164.0,3163.7,0.03708628]
[1731767006552,3.16055,3164.0,3163.3,3.477385]
[1731767006751,3.6791737,3164.9,3163.4,0.3477385]
[1731767006752,3.16065,3163.9,3163.4,0.3477385]
[1731767006906,3.16065,3163.9,3163.5,0.03715657]
[1731767007448,3.16065,3163.9,3163.3,3.16124]
[1731767007654,3.16065,3163.9,3163.6,0.03711857]
[1731767007817,3.16065,3163.9,3163.3,3.0]
[1731767008014,3.16075,3163.8,3163.7,0.03707596]
[1731767008237,3.16075,3163.8,3162.7,3.16184]
[1731767008238,6.8392237,3164.5,3162.7,3.16184]
[1731767008626,0.01,3164.3,3162.8,0.03566141]
[1731767008911,3.16144,3163.2,3162.5,3.16204]
[1731767009314,3.16144,3163.2,3162.6,0.03522592]
[1731767009517,3.16116,3163.4,3162.6,3.19716592]
[1731767009713,3.16125,3163.3,3162.6,3.19716592]
[1731767009947,3.16125,3163.3,3162.7,0.31971659]
[1731767010165,3.16125,3163.3,3162.8,0.09892481]
[1731767010372,3.16105,3163.5,3162.8,3.26065481]
[1731767010576,3.16117,3163.4,3162.8,0.09892481]
[1731767010867,3.16103,3163.6,3162.8,3.58668629]
[1731767011074,3.16118,3163.4,3162.8,0.42500629]
[1731767012244,3.16118,3163.4,3162.8,0.36177843]
[1731767012429,3.16126,3163.3,3162.8,0.03569695]
[1731767012645,3.16156,3163.0,3162.8,0.03569695]
[1731767012835,3.16156,3163.0,3162.4,3.0]
[1731767013379,3.16156,3163.0,3162.5,0.03579407]
[1731767013534,3.16156,3163.0,3162.6,0.30357941]
[1731767013871,3.16156,3163.0,3162.7,0.03577514]
[1731767014286,3.16135,3163.2,3162.7,0.03577514]
[1731767015779,3.16116,3163.4,3162.7,3.19761514]
[1731767015930,3.16146,3163.1,3162.8,0.31976151]
[1731767016134,3.16148,3163.1,3162.9,0.03527188]
[1731767016335,3.16148,3163.1,3162.2,3.0]
[1731767016638,3.16193,3162.7,3162.3,0.03608454]
[1731767016986,3.16115,3163.4,3162.3,0.30360845]
[1731767016987,3.16202,3162.6,3162.3,0.30360845]
[1731767017271,3.16203,3162.6,3162.4,0.03543781]
[1731767017657,3.16203,3162.6,3161.9,3.16265]
[1731767017854,3.16203,3162.6,3162.5,0.0354432]
[1731767018066,3.16203,3162.6,3162.0,3.16254]
[1731767018362,3.16168,3162.9,3162.2,3.16228]
[1731767018563,3.16178,3162.8,3162.3,0.03549005]
[1731767018763,3.16194,3162.7,3162.3,0.39321653]
[1731767018991,3.16165,3163.0,3162.3,0.03549005]
[1731767019297,3.16135,3163.3,3162.4,3.16206]
[1731767019477,3.68477365,3164.1,3162.7,3.16179]
[1731767019791,3.16143,3163.2,3162.8,0.03592267]
[1731767019956,3.16143,3163.2,3162.6,3.22517932]
[1731767020159,3.16143,3163.2,3162.7,0.03550679]
[1731767020667,3.16143,3163.2,3162.7,0.393206]
[1731767021468,3.16065,3163.9,3162.7,0.393206]
[1731767021659,3.16136,3163.2,3162.7,0.393206]
[1731767021886,3.16136,3163.2,3162.7,0.03550679]
[1731767022197,3.16146,3163.1,3162.5,0.316206]
[1731767022359,3.16146,3163.1,3162.6,0.03604639]
[1731767022970,3.16126,3163.3,3162.6,0.09927813]
[1731767023181,3.16106,3163.5,3162.8,3.16175]
[1731767023474,3.16065,3164.0,3162.9,3.19755928]
[1731767023475,0.66847737,3164.0,3162.9,3.19755928]
[1731767023806,3.16116,3163.4,3163.0,0.63593093]
[1731767024012,3.16133,3163.3,3162.9,0.03594928]
[1731767024294,3.16133,3163.3,3163.1,0.03587503]
[1731767024523,3.16064,3164.0,3163.0,0.03590739]
[1731767024797,3.15982,3164.8,3164.0,3.16048]
[1731767025019,3.15965,3165.0,3164.3,3.16024]
[1731767025410,0.38420498,3165.5,3164.4,0.03522055]
[1731767025411,3.15992,3164.7,3164.4,0.03522055]
[1731767025574,3.15966,3164.9,3164.4,0.03522055]
[1731767025777,3.54327498,3165.5,3164.4,3.16011]
[1731767025976,6.31612,3166.5,3165.2,3.15925]
[1731767026180,6.84282365,3166.6,3165.3,0.03485265]
[1731767026181,3.15856,3166.0,3165.3,0.03485265]
[1731767026588,3.15856,3166.0,3165.3,3.19409265]
[1731767026799,3.15856,3166.0,3165.4,3.15915]
[1731767027025,3.15856,3166.0,3165.5,0.03470335]
[1731767027222,3.15832,3166.3,3165.5,0.03470335]
[1731767027518,3.15784,3166.8,3165.9,3.15857]
[1731767027721,0.01,3167.7,3166.0,0.37902187]
[1731767027722,3.15799,3166.6,3166.0,0.37902187]
[1731767027911,3.15799,3166.6,3166.0,0.03415387]
[1731767028086,3.15772,3166.9,3166.0,0.03415387]
[1731767028282,3.16702,3167.6,3166.1,3.15838]
[1731767028505,0.317702,3167.5,3166.1,3.19252243]
[1731767028715,3.15766,3166.9,3166.1,3.19252243]
[1731767028920,3.15779,3166.8,3166.1,0.03414243]
[1731767029114,3.15779,3166.8,3166.1,0.35973605]
[1731767029328,6.474842,3167.5,3166.1,0.32559362]
[1731767029540,6.474842,3167.5,3165.1,3.1594]
[1731767029541,3.15827,3166.3,3166.2,0.03407117]
[1731767029886,3.15862,3166.0,3165.1,3.15944]
[1731767030129,3.15837,3166.2,3165.2,0.06318323]
[1731767030421,3.0,3166.7,3165.2,0.03314816]
[1731767030422,3.15797,3166.6,3165.2,0.03314816]
[1731767030634,3.15776,3166.8,3165.7,3.1588]
[1731767030789,3.15776,3166.8,3165.8,0.06316827]
[1731767030989,3.15776,3166.8,3165.9,0.03284335]
[1731767031285,3.1579,3166.7,3165.9,3.19149335]
[1731767031496,3.15796,3166.6,3165.9,0.03284335]
[1731767031825,3.01,3167.3,3165.9,0.03284335]
[1731767031826,3.15826,3166.3,3165.9,0.03284335]
[1731767032008,3.15825,3166.4,3165.5,3.15904]
[1731767032325,3.15825,3166.4,3165.6,3.19169219]
[1731767032703,3.15826,3166.3,3165.6,3.19169219]
[1731767032901,3.15796,3166.6,3165.7,3.15884]
[1731767033102,3.15774,3166.9,3165.9,3.15865]
[1731767033301,3.15717,3167.4,3166.1,3.15845]
[1731767033601,3.68477365,3166.3,3164.4,0.647093]
[1731767033927,3.15945,3165.2,3164.4,0.647093]
[1731767034097,3.15895,3165.6,3164.4,0.647093]
[1731767034305,3.15954,3165.1,3164.2,0.06319703]
[1731767034628,3.16845,3166.1,3164.2,0.3223697]
[1731767034629,3.15966,3164.9,3164.2,0.3223697]
[1731767034939,3.15975,3164.9,3164.1,3.16043]
[1731767035106,3.1598,3164.8,3164.1,3.16043]
[1731767035323,3.15986,3164.7,3163.6,3.16095]
[1731767035638,3.16007,3164.5,3163.8,3.16073]
[1731767035797,3.16007,3164.5,3163.6,3.16095]
[1731767035798,3.16012,3164.5,3163.6,3.16095]
[1731767035999,3.16012,3164.5,3163.7,3.16083]
[1731767036497,3.15966,3164.9,3163.8,3.16068]
[1731767036706,3.15996,3164.6,3163.8,3.16068]
[1731767036886,3.15996,3164.6,3164.0,0.3163]
[1731767037090,3.15996,3164.6,3163.9,0.316068]
[1731767037307,3.15996,3164.6,3163.9,3.476698]
[1731767038029,3.15889,3165.7,3163.9,0.316068]
[1731767038224,3.15955,3165.0,3164.0,3.22371569]
[1731767038596,0.35836343,3165.7,3164.0,3.22371569]
[1731767038896,0.35836343,3165.7,3164.5,3.15996]
[1731767038897,3.15925,3165.4,3164.5,3.15996]
[1731767039121,3.15941,3165.2,3164.3,3.16024]
[1731767039340,0.35836343,3165.7,3164.1,0.06319848]
[1731767039341,3.15928,3165.3,3164.1,0.06319848]
[1731767039635,3.15928,3165.3,3164.6,3.15993]
[1731767039837,3.15905,3165.6,3164.7,3.1598]
[1731767039838,3.15906,3165.5,3164.7,3.1598]
[1731767039985,3.15905,3165.6,3164.8,3.15973]
[1731767040216,3.15905,3165.6,3164.9,3.15963]
[1731767040444,3.15908,3165.5,3164.8,0.315973]
[1731767040719,3.15876,3165.8,3165.0,3.15947]
[1731767040918,0.36947736,3166.2,3164.8,3.15974]
[1731767041173,3.15868,3165.9,3164.8,3.15974]
[1731767041320,3.15868,3165.9,3165.1,3.15937]
[1731767041525,3.15877,3165.8,3165.1,3.15937]
[1731767041854,3.15877,3165.8,3165.2,0.0299906]
[1731767042061,3.15845,3166.1,3165.2,0.0299906]
[1731767042266,3.15878,3165.8,3165.2,0.0299906]
[1731767042421,3.15879,3165.8,3165.1,3.15936]
[1731767042619,3.15879,3165.8,3165.2,0.0299906]
[1731767042823,3.15879,3165.8,3165.2,3.15935]
[1731767043064,3.15881,3165.8,3165.3,0.0299164]
[1731767043361,3.15858,3166.0,3165.3,0.0299164]
[1731767043585,3.51138574,3166.0,3165.0,3.15952]
[1731767044046,3.15866,3165.9,3165.2,3.15931]
[1731767044387,0.36947736,3166.2,3165.3,0.02990516]
[1731767044679,3.15873,3165.9,3165.1,3.15944]
[1731767044885,3.15876,3165.8,3165.1,3.15944]
[1731767045063,3.15876,3165.8,3165.2,0.02993746]
[1731767046083,3.15857,3166.0,3165.2,0.02993746]
[1731767046245,6.68477365,3166.0,3165.2,0.02993746]
[1731767046451,3.15925,3165.3,3165.2,0.02993746]
[1731767046764,3.15938,3165.2,3164.5,3.16004]
[1731767046972,3.15923,3165.4,3164.6,3.18975942]
[1731767047154,3.15923,3165.4,3164.6,3.15987]
[1731767047355,3.15923,3165.4,3164.7,3.15982]
[1731767047706,3.15923,3165.4,3164.7,3.1896771]
[1731767048748,3.15923,3165.4,3164.7,0.0298571]
[1731767049081,3.15884,3165.8,3164.7,0.06319308]
[1731767049385,3.16814,3166.5,3164.3,3.0]
[1731767049386,3.15796,3166.6,3165.4,3.15915]
[1731767049538,3.15796,3166.6,3164.9,3.15957]
[1731767049539,9.47478,3166.3,3164.9,3.15957]
[1731767049743,3.68477365,3166.4,3164.6,3.0]
[1731767050084,6.84258365,3166.8,3165.5,3.15896]
[1731767050288,3.15848,3166.1,3165.5,3.15896]
[1731767050583,3.15845,3166.2,3165.6,0.02950451]
[1731767050734,3.0,3166.5,3165.6,0.02950451]
[1731767050940,0.3,3166.4,3164.9,3.15957]
[1731767051137,3.15926,3165.3,3164.7,0.3]
[1731767051521,3.15926,3165.3,3163.2,3.16127]
[1731767051522,3.15896,3165.6,3164.4,0.06319141]
[1731767051674,3.15896,3165.6,3164.8,0.02975155]
[1731767051878,3.15896,3165.6,3164.9,3.15965]
[1731767052052,3.15896,3165.6,3164.9,3.18936924]
[1731767052391,3.15896,3165.6,3165.0,3.15953]
[1731767052681,3.15877,3165.8,3165.0,3.15953]
[1731767052682,3.0,3165.7,3165.1,3.18906461]
[1731767053091,3.15877,3165.8,3165.2,3.15934]
[1731767053293,3.15857,3166.0,3165.3,3.15924]
[1731767053497,3.15857,3166.0,3165.3,3.18885663]
[1731767053793,3.15818,3166.4,3165.4,3.15915]
[1731767053948,3.15818,3166.4,3165.5,0.34842868]
[1731767054154,3.15818,3166.4,3165.8,3.15873]
[1731767054366,3.15818,3166.4,3165.9,0.02942284]
[1731767054569,3.15777,3166.8,3165.9,0.02942284]
[1731767054752,0.3921346,3167.5,3166.2,3.15835]
[1731767054953,3.15751,3167.1,3166.2,3.15835]
[1731767055147,3.15751,3167.1,3166.3,0.0290649]
[1731767055392,3.15776,3166.8,3166.2,3.15835]
[1731767055596,0.40769083,3167.4,3166.3,3.18751861]
[1731767055597,3.15727,3167.3,3166.3,3.18751861]
[1731767055764,3.15751,3167.1,3166.4,3.15808]
[1731767055964,0.40769083,3167.4,3166.4,3.15808]
[1731767055965,0.40769083,3167.4,3166.6,3.15786]
[1731767056165,3.15709,3167.5,3166.7,0.02904684]
[1731767056494,3.15709,3167.5,3166.8,3.15773]
[1731767056853,3.15709,3167.5,3166.9,0.02898229]
[1731767057762,3.15722,3167.4,3166.6,3.15786]
[1731767058281,3.1573,3167.3,3166.7,0.02904122]
[1731767058488,3.15776,3166.8,3166.7,0.02904122]
[1731767058655,3.1579,3166.7,3165.9,6.15861]
[1731767058853,3.15776,3166.8,3166.7,0.0290356]
[1731767059355,3.15776,3166.8,3166.2,3.15835]
[1731767059560,3.15786,3166.7,3166.3,0.03013141]
[1731767059760,3.15816,3166.4,3165.3,3.15917]
[1731767059992,3.15804,3166.6,3165.4,0.03040006]
[1731767060160,3.15844,3166.2,3165.4,3.18954006]
[1731767060358,3.15844,3166.2,3165.4,3.15914]
[1731767060558,3.15844,3166.2,3165.5,0.03036545]
[1731767061152,3.15793,3166.7,3165.6,0.31895054]
[1731767061349,3.15793,3166.7,3165.5,0.03036545]
[1731767061350,3.0,3167.1,3165.5,3.15904]
[1731767061650,3.15816,3166.4,3165.4,3.15915]
[1731767061852,3.15816,3166.4,3165.6,3.15888]
[1731767062051,3.15797,3166.6,3165.6,3.15888]
[1731767062262,3.15778,3166.8,3165.8,3.15872]
[1731767062492,3.15817,3166.4,3165.6,3.790743]
[1731767062808,3.15817,3166.4,3165.7,3.15878]
[1731767063008,3.15795,3166.7,3165.8,3.15875]
[1731767063009,3.15804,3166.6,3165.8,3.15875]
[1731767063183,3.15795,3166.7,3165.8,3.15875]
[1731767063184,3.15808,3166.5,3165.8,3.15875]
[1731767063908,0.875,3167.0,3165.8,3.15875]
[1731767064210,0.875,3167.0,3166.2,3.15827]
[1731767064211,4.03256,3167.0,3166.2,3.15827]
[1731767064417,3.0,3166.9,3166.2,3.15827]
[1731767065109,3.0,3166.9,3166.0,3.15846]
[1731767065294,3.15777,3166.8,3166.1,3.15845]
[1731767065900,4.03258,3167.0,3166.1,3.474295]
[1731767066117,3.15767,3166.9,3166.2,3.15835]
[1731767066265,0.875,3167.0,3166.1,0.315845]
[1731767066607,4.03258,3167.0,3166.3,3.15823]
[1731767067611,0.875,3167.0,3165.5,3.0]
[1731767067764,0.875,3167.0,3166.1,0.55]
[1731767067976,0.875,3167.0,3166.2,0.43400652]
[1731767068302,0.875,3167.0,3166.7,3.15784]
[1731767068706,0.875,3167.0,3166.5,3.15804]
[1731767070015,0.875,3167.0,3166.6,3.15788]
[1731767070385,0.875,3167.0,3166.2,0.370855]
[1731767070693,0.875,3167.0,3166.6,3.15794]
[1731767071005,0.875,3167.0,3166.8,3.15766]
[1731767071212,0.875,3167.0,3166.6,3.15789]
[1731767071213,0.875,3167.0,3166.9,3.15766]
[1731767071381,3.68477365,3168.4,3166.2,3.15829]
[1731767071382,0.6284379,3169.2,3167.9,3.15658]
[1731767071582,1.262376,3169.3,3168.0,0.06312346]
[1731767071583,3.34455139,3169.1,3168.0,0.06312346]
[1731767071827,3.34455139,3169.1,3168.4,3.15616]
[1731767071828,0.18908139,3169.1,3168.4,3.15616]
[1731767072005,0.18908139,3169.1,3168.6,3.15596]
[1731767072201,0.144435,3169.9,3168.4,3.15607]
[1731767072422,0.144435,3169.9,3168.1,0.20047326]
[1731767072423,3.15515,3169.5,3168.5,3.15598]
[1731767072622,3.15514,3169.5,3168.5,3.15598]
[1731767072787,0.144435,3169.9,3168.5,3.15598]
[1731767072788,3.15525,3169.4,3168.5,3.15598]
[1731767072990,0.315525,3169.3,3168.5,3.15598]
[1731767073297,0.144435,3169.9,3169.1,3.15546]
[1731767073500,0.144435,3169.9,3169.3,3.15518]
[1731767073685,0.144435,3169.9,3169.2,0.06310753]
[1731767073686,0.144435,3169.9,3169.4,3.15512]
[1731767073887,0.144435,3169.9,3169.6,3.15489]
[1731767074635,0.144435,3169.9,3169.7,3.15486]
[1731767074844,0.144435,3169.9,3169.8,3.21786265]
[1731767075129,0.144435,3169.9,3169.8,3.15477]
[1731767075924,0.144435,3169.9,3169.8,3.7920458]
[1731767076485,3.15261,3172.0,3169.8,7.87204945]
[1731767076831,3.15329,3171.3,3170.4,3.15407]
[1731767076997,3.15329,3171.3,3169.9,3.06307592]
[1731767076998,3.468749,3171.2,3170.2,3.0]
[1731767077198,3.15342,3171.2,3170.2,3.0]
[1731767078375,3.15329,3171.3,3170.2,6.15435]
[1731767078530,3.15328,3171.3,3170.4,3.15409]
[1731767078867,0.315329,3171.3,3170.4,3.15409]
[1731767079073,3.15301,3171.6,3170.4,3.15409]
[1731767079362,3.15324,3171.4,3170.6,3.15394]
[1731767079727,3.15328,3171.3,3170.4,3.15416]
[1731767079931,3.15343,3171.2,3170.4,3.15416]
[1731767080133,3.15348,3171.1,3169.9,3.0]
[1731767080385,0.3,3171.7,3169.9,3.15458]
[1731767080386,3.1538,3170.8,3169.9,3.15458]
[1731767080583,3.15428,3170.3,3169.6,3.15497]
[1731767080733,3.15428,3170.3,3169.4,3.15514]
[1731767080934,3.15428,3170.3,3169.5,3.15504]
[1731767081171,3.15409,3170.5,3169.7,3.15486]
[1731767081340,3.15387,3170.7,3169.4,3.786199]
[1731767081341,3.15387,3170.7,3169.8,3.21777902]
[1731767081721,3.15368,3170.9,3170.0,3.15453]
[1731767081875,3.15368,3170.9,3170.1,0.06308252]
[1731767082178,3.784396,3170.9,3170.1,0.06308252]
[1731767082393,3.784396,3170.9,3170.2,3.15436]
[1731767082544,3.15359,3171.0,3170.2,3.15436]
[1731767082878,3.1537,3170.9,3170.1,3.15444]
[1731767083046,3.784418,3170.9,3170.1,3.15444]
[1731767083247,3.15386,3170.8,3169.9,3.15465]
[1731767083558,3.15389,3170.7,3169.9,3.15465]
[1731767083755,3.15389,3170.7,3170.0,0.06308372]
[1731767084077,3.15369,3170.9,3170.2,3.15436]
[1731767084671,3.15338,3171.2,3170.3,0.06307828]
[1731767084983,3.15348,3171.1,3170.1,3.15447]
[1731767085289,3.15328,3171.3,3169.9,3.55]
[1731767085495,3.15334,3171.3,3170.2,3.15437]
[1731767085649,3.15334,3171.3,3170.1,3.0]
[1731767085650,3.15334,3171.3,3170.3,0.06307383]
[1731767085853,3.15334,3171.3,3170.6,3.15397]